[Event "XXIX Cracovia 2018"]
[Site "Krakow"]
[Date "2019.01.04"]
[Round "9"]
[White "Colijn, Stefan"]
[Black "Marszalek, Maciej"]
[Result "1/2-1/2"]
[ECO "A05"]
[WhiteElo "2331"]
[BlackElo "2280"]
[Annotator "NA"]
[PlyCount "131"]
[EventDate "2018.12.27"]
[EventType "swiss"]
[EventCountry "POL"]
[SourceTitle "playchess.com"]
[Source "ChessBase"]
[SourceQuality "1"]
[TimeControl "40/5400+30:1800+30"]

1. Nf3 {[%emt 0:01:42]} Nf6 {[%emt 0:00:00]} 2. g3 {[%emt 0:02:22]} g6 {[%emt 0:00:01]} 3. Bg2 {[%emt 0:00:01]} Bg7 {[%emt 0:00:06]} 4. O-O {[%emt 0:00:06]} O-O {[%emt 0:00:23]} 5. c4 {[%emt 0:01:25]} c6 {[%emt 0:00:10]} 6. d4 {[%emt 0:00:48]} d5 {[%emt 0:00:13]} 7. Ne5 {[%emt 0:00:39]} dxc4 {[%emt 0:01:44]} 8. Nxc4 {[%emt 0:01:45]} Be6 {[%emt 0:02:03]} 9. b3 {[%emt 0:01:08]} Bd5 {[%emt 0:01:40]} 10. f3 {[%emt 0:08:48]} c5 {[%emt 0:03:34]} 11. Bb2 {[%emt 0:04:33]} cxd4 {[%emt 0:04:41]} 12. Ne5 {[%emt 0:08:33]} Nc6 {[%emt 0:03:05]} (12... Nfd7 $17 13. Nd3 Nc6) 13. Nxc6 $15 {[%emt 0:01:08]} Bxc6 {[%emt 0:06:11]} 14. Qxd4 {[%emt 0:01:36]} Qxd4+ {[%emt 0:08:23]} 15. Bxd4 {[%emt 0:03:58]} Rfd8 {[%emt 0:00:08]} 16. Be5 {[%emt 0:00:21]} Nd5 {[%emt 0:17:48]} 17. Bxg7 {[%emt 0:05:07]} Kxg7 {[%emt 0:00:01]} 18. Kf2 {[%emt 0:00:22]} a5 {[%emt 0:12:42]} 19. a3 {[%emt 0:04:23]} e5 {[%emt 0:10:24]} 20. Ra2 {[%emt 0:01:48]} Nb6 {[%emt 0:03:34]} 21. Rc1 {[%emt 0:07:56]} Rd6 {[%emt 0:01:38]} 22. Rd2 {[%emt 0:01:14]} Rxd2 {[%emt 0:02:33]} 23. Nxd2 {[%emt 0:00:02]} Rd8 {[%emt 0:00:40]} 24. Rc2 {[%emt 0:09:05]} f5 {[%emt 0:02:44]} 25. e3 {[%emt 0:04:37]} Kf6 {[%emt 0:00:38]} 26. Bf1 {[%emt 0:00:16]} h6 {[%emt 0:01:46]} 27. e4 {[%emt 0:09:36]} g5 {[%emt 0:10:00]} 28. exf5 {[%emt 0:08:08]} Kxf5 {[%emt 0:00:03]} 29. b4 {[%emt 0:01:12]} axb4 {[%emt 0:01:04]} 30. axb4 {[%emt 0:00:02]} Ba4 {[%emt 0:00:17]} 31. Ra2 {[%emt 0:00:29]} Rd4 {[%emt 0:00:39]} 32. Rb2 {[%emt 0:03:04]} Kg6 {[%emt 0:00:44]} 33. Ne4 {[%emt 0:00:40]} Bc6 {[%emt 0:01:44]} 34. Nc5 {[%emt 0:00:03]} Na4 {[%emt 0:01:09]} 35. Nxa4 {[%emt 0:03:23]} Bxa4 {[%emt 0:00:01]} 36. b5 {[%emt 0:02:55]} Kf6 {[%emt 0:00:26]} 37. Ke3 {[%emt 0:00:29]} Ke6 {[%emt 0:01:13]} 38. Bd3 {[%emt 0:02:21]} Kd6 {[%emt 0:01:07]} 39. h4 {[%emt 0:00:40]} gxh4 {[%emt 0:03:00]} 40. g4 {[%emt 0:00:00]} Kc5 {[%emt 0:00:00]} 41. Rh2 {[%emt 0:00:17]} Bd1 {[%emt 0:11:40]} 42. Be4 {[%emt 0:00:33]} Rb4 {[%emt 0:00:44]} 43. Rxh4 {[%emt 0:00:44]} Rb3+ {[%emt 0:01:14]} 44. Kf2 {[%emt 0:02:04]} Rxb5 {[%emt 0:00:21]} 45. Rxh6 {[%emt 0:00:12]} Rb2+ {[%emt 0:00:10]} 46. Kg3 {[%emt 0:00:42]} Rb6 {[%emt 0:12:47]} 47. g5 {[%emt 0:05:51]} Bb3 {[%emt 0:01:16]} 48. Rxb6 {[%emt 0:01:10]} Kxb6 {[%emt 0:00:01]} 49. Kg4 {[%emt 0:00:39]} Be6+ {[%emt 0:00:06]} 50. Kh5 {[%emt 0:00:18]} Kc7 {[%emt 0:00:20]} 51. g6 {[%emt 0:00:56]} b5 {[%emt 0:00:37]} 52. g7 {[%emt 0:00:17]} Kd6 {[%emt 0:00:57]} 53. Bh7 {[%emt 0:00:19]} Kd5 {[%emt 0:00:28]} 54. g8=Q {[%emt 0:01:48]} Bxg8 {[%emt 0:00:11]} 55. Bxg8+ {[%emt 0:00:02]} Kd4 {[%emt 0:00:04]} 56. Bh7 {[%emt 0:01:21]} Ke3 {[%emt 0:00:43]} 57. Kg4 {[%emt 0:00:33]} b4 {[%emt 0:00:50]} 58. Bc2 {[%emt 0:02:57]} Kd2 {[%emt 0:00:50]} 59. Bb3 {[%emt 0:00:51]} Ke3 {[%emt 0:02:03]} 60. Kg3 {[%emt 0:03:10]} e4 {[%emt 0:00:07]} 61. f4 {[%emt 0:09:08]} Kd2 {[%emt 0:00:06]} 62. Bc4 {[%emt 0:03:09]} e3 {[%emt 0:00:19]} 63. f5 {[%emt 0:00:35]} b3 {[%emt 0:00:08]} 64. f6 {[%emt 0:00:43]} b2 {[%emt 0:04:23]} 65. f7 {[%emt 0:00:05]} e2 {[%emt 0:02:10]} 66. Bxe2 {[%emt 0:00:07]} 1/2-1/2

[Event "XXIX Cracovia 2018"]
[Site "Krakow"]
[Date "2019.01.04"]
[Round "9"]
[White "Godzwon, Iwo"]
[Black "Strybuk, Artsiom I"]
[Result "1/2-1/2"]
[ECO "A57"]
[WhiteElo "2323"]
[BlackElo "2172"]
[Annotator "NA"]
[PlyCount "77"]
[EventDate "2018.12.27"]
[EventType "swiss"]
[EventCountry "POL"]
[SourceTitle "playchess.com"]
[Source "ChessBase"]
[SourceQuality "1"]
[TimeControl "40/5400+30:1800+30"]

1. d4 {[%emt 0:00:00]} Nf6 {[%emt 0:00:00]} 2. c4 {[%emt 0:00:00]} c5 {[%emt 0:00:00]} 3. d5 {[%emt 0:00:00]} b5 {[%emt 0:00:00]} 4. cxb5 {[%emt 0:00:00]} a6 {[%emt 0:00:05]} 5. e3 {[%emt 0:00:00]} axb5 {[%emt 0:00:28]} 6. Bxb5 {[%emt 0:00:00]} Bb7 {[%emt 0:00:09]} 7. Nc3 {[%emt 0:00:00]} Qa5 {[%emt 0:00:10]} 8. Bd2 {[%emt 0:00:00]} Qb6 {[%emt 0:00:09]} 9. a4 {[%emt 0:02:02]} Nxd5 {[%emt 0:00:57]} 10. Nf3 {[%emt 0:00:55]} Nb4 {[%emt 0:00:41]} 11. e4 {[%emt 0:00:11]} e6 {[%emt 0:00:48]} 12. O-O {[%emt 0:02:34]} N8c6 {[%emt 0:00:10]} 13. Bf4 {[%emt 0:00:24]} Be7 {[%emt 0:00:09]} 14. Bd6 {[%emt 0:02:27]} Qd8 {[%emt 0:00:07]} 15. Ne5 {[%emt 0:17:55]} Bxd6 {[%emt 0:05:36]} 16. Qxd6 {[%emt 0:00:04]} Qe7 {[%emt 0:00:12]} 17. Nc4 {[%emt 0:00:08]} Ba6 {[%emt 0:07:21]} 18. Qd2 $11 {[%emt 0:10:07]} O-O {[%emt 0:07:00]} 19. Bxa6 {[%emt 0:10:31]} Rxa6 {[%emt 0:00:35]} 20. Nb5 {[%emt 0:00:02]} Nd4 {[%emt 0:05:09]} 21. Nxd4 {[%emt 0:01:33]} cxd4 {[%emt 0:01:27]} 22. b3 {[%emt 0:04:32]} Rb8 {[%emt 0:03:06]} 23. Ne5 {[%emt 0:05:55]} Raa8 {[%emt 0:08:43]} 24. Rfc1 {[%emt 0:06:27]} Qd6 {[%emt 0:09:56]} 25. Nc4 {[%emt 0:05:41]} Qc5 {[%emt 0:01:55]} 26. a5 {[%emt 0:02:36]} Qb5 {[%emt 0:15:53]} 27. Qxd4 {[%emt 0:00:30]} d5 {[%emt 0:00:55]} 28. Nd6 {[%emt 0:07:22]} Qd7 {[%emt 0:03:41]} 29. e5 {[%emt 0:00:03]} Nc6 {[%emt 0:02:41]} 30. Qc3 {[%emt 0:00:53]} Ra6 {[%emt 0:04:23]} 31. b4 {[%emt 0:02:15]} Rxb4 {[%emt 0:04:35]} 32. Rab1 {[%emt 0:00:11]} Rxb1 {[%emt 0:03:39]} 33. Rxb1 {[%emt 0:00:02]} g6 {[%emt 0:00:02]} 34. Rb7 {[%emt 0:06:50]} Qd8 {[%emt 0:00:42]} 35. Nxf7 {[%emt 0:02:56]} Qxa5 {[%emt 0:01:02]} 36. Nh6+ {[%emt 0:00:53]} Kh8 {[%emt 0:00:44]} 37. Nf7+ {[%emt 0:00:45]} Kg8 {[%emt 0:02:11]} 38. Nh6+ {[%emt 0:00:03]} Kh8 {[%emt 0:00:37]} 39. Qc1 {[%emt 0:03:00]} 1/2-1/2

[Event "XXIX Cracovia 2018"]
[Site "Krakow"]
[Date "2019.01.04"]
[Round "9"]
[White "Nowicki, Bartosz"]
[Black "Schreiner, Peter"]
[Result "1-0"]
[ECO "C77"]
[WhiteElo "2305"]
[BlackElo "2479"]
[Annotator "ChessBase"]
[PlyCount "85"]
[EventDate "2018.12.27"]
[EventType "swiss"]
[EventCountry "POL"]
[SourceTitle "playchess.com"]
[Source "ChessBase"]
[SourceQuality "1"]
[TimeControl "40/5400+30:1800+30"]

1. e4 {[%emt 0:00:00]} e5 {[%emt 0:00:29]} 2. Nf3 {[%emt 0:00:00]} Nc6 {[%emt 0:00:06]} 3. Bb5 {[%emt 0:00:00]} a6 {[%emt 0:00:43]} 4. Ba4 {[%emt 0:00:00]} Nf6 {[%emt 0:00:17]} 5. d3 {[%emt 0:00:00]} d6 {[%emt 0:01:30]} 6. c3 {[%emt 0:00:00]} g6 {[%emt 0:00:53]} 7. O-O {[%emt 0:00:12]} Bg7 {[%emt 0:00:06]} 8. h3 {[%emt 0:00:05]} O-O {[%emt 0:00:17]} 9. Be3 {[%emt 0:00:37]} b5 {[%emt 0:02:50]} 10. Bc2 {[%emt 0:00:07]} Bb7 {[%emt 0:00:50]} 11. Nbd2 {[%emt 0:00:19]} Re8 {[%emt 0:01:21]} 12. b4 {[%emt 0:01:09]} Nd7 {[%emt 0:13:22]} 13. a4 {[%emt 0:01:43]} Nf8 {[%emt 0:00:40]} 14. Bb3 {[%emt 0:02:12]} Ne6 {[%emt 0:01:41]} 15. Bd5 {[%emt 0:03:29]} Qc8 {[%emt 0:03:23]} 16. Nb3 {[%emt 0:15:35]} Ne7 {[%emt 0:05:47]} 17. Bxb7 {[%emt 0:00:10]} Qxb7 {[%emt 0:00:02]} 18. Na5 {[%emt 0:01:48]} Qc8 {[%emt 0:01:22]} 19. Qb3 {[%emt 0:02:09]} Qd7 {[%emt 0:06:39]} 20. d4 {[%emt 0:05:23]} exd4 {[%emt 0:02:37]} 21. cxd4 {[%emt 0:00:46]} d5 {[%emt 0:05:18]} 22. e5 {[%emt 0:05:46]} Nc8 {[%emt 0:03:15]} 23. Nb7 {[%emt 0:06:30]} Nb6 {[%emt 0:03:12]} 24. a5 {[%emt 0:00:42]} Nc4 {[%emt 0:00:28]} 25. Nh2 {[%emt 0:12:04]} Rab8 {[%emt 0:10:02]} 26. Nc5 {[%emt 0:00:09]} Nxc5 {[%emt 0:00:05]} 27. bxc5 {[%emt 0:00:03]} f6 {[%emt 0:02:57]} 28. f4 {[%emt 0:02:48]} b4 {[%emt 0:03:23]} 29. Bc1 {[%emt 0:03:25]} f5 {[%emt 0:10:40]} 30. Ra4 {[%emt 0:10:08]} Qb5 {[%emt 0:04:44]} 31. Rf2 {[%emt 0:00:37]} Nxa5 {[%emt 0:03:45]} 32. Qxd5+ {[%emt 0:00:15]} Kh8 {[%emt 0:00:07]} 33. Rxa5 {[%emt 0:00:28]} Qxa5 {[%emt 0:00:13]} 34. Bb2 {[%emt 0:00:21]} Qb5 {[%emt 0:02:22]} 35. Nf3 {[%emt 0:00:44]} c6 {[%emt 0:03:48]} 36. Qb3 {[%emt 0:01:00]} a5 {[%emt 0:00:33]} 37. Ng5 {[%emt 0:00:24]} Re7 {[%emt 0:04:43]} 38. Nf7+ {[%emt 0:00:43]} Rxf7 {[%emt 0:00:02]} 39. Qxf7 {[%emt 0:00:07]} a4 {[%emt 0:03:24]} 40. e6 {[%emt 0:00:00]} Qb7 {[%emt 0:00:00]} 41. e7 {[%emt 0:01:47]} Qc8 {[%emt 0:08:18]} 42. d5 {[%emt 0:01:57]} Bxb2 {[%emt 0:02:08]} 43. d6 {[%emt 0:00:45]} 1-0

[Event "XXIX Cracovia 2018"]
[Site "Krakow"]
[Date "2019.01.04"]
[Round "9"]
[White "Zylka, Stanislaw"]
[Black "Kozak, Antoni"]
[Result "0-1"]
[ECO "E43"]
[WhiteElo "2305"]
[BlackElo "2236"]
[Annotator "NA"]
[PlyCount "72"]
[EventDate "2018.12.27"]
[EventType "swiss"]
[EventCountry "POL"]
[SourceTitle "playchess.com"]
[Source "ChessBase"]
[SourceQuality "1"]
[TimeControl "40/5400+30:1800+30"]

1. d4 {[%emt 0:00:00]} Nf6 {[%emt 0:00:00]} 2. c4 {[%emt 0:00:00]} e6 {[%emt 0:00:16]} 3. Nc3 {[%emt 0:00:00]} Bb4 {[%emt 0:00:04]} 4. e3 {[%emt 0:00:05]} b6 {[%emt 0:00:48]} 5. Bd3 {[%emt 0:01:24]} Bb7 {[%emt 0:00:51]} 6. Nf3 {[%emt 0:00:58]} O-O {[%emt 0:07:12]} 7. O-O {[%emt 0:00:41]} d5 {[%emt 0:00:04]} 8. cxd5 {[%emt 0:00:29]} exd5 {[%emt 0:00:05]} 9. Qc2 {[%emt 0:06:24]} a6 {[%emt 0:01:19]} 10. Ne5 {[%emt 0:02:04]} Nbd7 {[%emt 0:02:17]} 11. f4 {[%emt 0:00:16]} c5 {[%emt 0:03:27]} 12. a3 {[%emt 0:00:16]} Ba5 {[%emt 0:04:52]} 13. Ne2 {[%emt 0:13:02]} Rc8 $14 {[%emt 0:06:26]} (13... c4 $11 14. Bf5 g6 15. Bxd7 Nxd7) 14. Qb1 {[%emt 0:05:15]} c4 {[%emt 0:08:15]} 15. Bf5 {[%emt 0:00:31]} g6 {[%emt 0:00:33]} 16. Bh3 {[%emt 0:00:06]} Rc7 {[%emt 0:01:17]} 17. Ng3 {[%emt 0:08:33]} Qe7 {[%emt 0:05:43]} 18. Qc2 {[%emt 0:00:46]} Nb8 {[%emt 0:05:43]} 19. f5 {[%emt 0:04:17]} Nc6 {[%emt 0:04:59]} 20. Kh1 {[%emt 0:04:34]} Nxe5 {[%emt 0:04:59]} 21. dxe5 {[%emt 0:00:38]} Ne4 {[%emt 0:00:10]} 22. Nxe4 {[%emt 0:01:35]} dxe4 {[%emt 0:00:23]} 23. Bd2 {[%emt 0:12:53]} Bxd2 {[%emt 0:02:24]} 24. Qxd2 {[%emt 0:00:02]} Qxe5 {[%emt 0:01:10]} 25. Rad1 {[%emt 0:00:51]} Bc8 {[%emt 0:01:20]} 26. Qe1 {[%emt 0:03:47]} Rc6 {[%emt 0:06:17]} 27. Qh4 {[%emt 0:04:31]} gxf5 {[%emt 0:02:34]} 28. Rf2 {[%emt 0:02:48]} c3 {[%emt 0:08:29]} 29. bxc3 {[%emt 0:00:08]} Qxc3 {[%emt 0:00:06]} 30. Bxf5 {[%emt 0:01:37]} Bxf5 {[%emt 0:00:22]} 31. Rxf5 {[%emt 0:00:11]} Qxe3 {[%emt 0:01:59]} 32. Re5 {[%emt 0:01:54]} Qxa3 {[%emt 0:01:34]} 33. Qxe4 {[%emt 0:02:01]} Rg6 {[%emt 0:00:11]} 34. h4 {[%emt 0:01:16]} Qg3 {[%emt 0:01:16]} 35. Rd3 {[%emt 0:01:09]} Qg4 {[%emt 0:00:13]} 36. Qe1 {[%emt 0:00:29]} Qxg2# 0-1

[Event "XXIX Cracovia 2018"]
[Site "Krakow"]
[Date "2019.01.04"]
[Round "9"]
[White "Belous, Mikhail"]
[Black "Shyam Prasad Reddy K"]
[Result "1-0"]
[ECO "D70"]
[WhiteElo "2299"]
[BlackElo "2137"]
[Annotator "NA"]
[PlyCount "55"]
[EventDate "2018.12.27"]
[EventType "swiss"]
[EventCountry "POL"]
[SourceTitle "playchess.com"]
[Source "ChessBase"]
[SourceQuality "1"]
[TimeControl "40/5400+30:1800+30"]

1. d4 {[%emt 0:00:00]} Nf6 {[%emt 0:00:00]} 2. c4 {[%emt 0:00:00]} g6 {[%emt 0:00:00]} 3. f3 {[%emt 0:00:00]} d5 {[%emt 0:00:00]} 4. cxd5 {[%emt 0:00:00]} Nxd5 {[%emt 0:00:00]} 5. e4 {[%emt 0:00:00]} Nb6 {[%emt 0:00:00]} 6. Nc3 {[%emt 0:00:02]} Bg7 {[%emt 0:00:00]} 7. Be3 {[%emt 0:00:07]} O-O {[%emt 0:00:13]} 8. Qd2 {[%emt 0:00:20]} Nc6 {[%emt 0:00:10]} 9. O-O-O {[%emt 0:00:44]} Qd6 {[%emt 0:00:25]} 10. Kb1 {[%emt 0:00:33]} Rd8 {[%emt 0:00:05]} 11. Nb5 {[%emt 0:00:29]} Qd7 {[%emt 0:00:07]} 12. d5 {[%emt 0:00:13]} a6 {[%emt 0:00:29]} 13. Nc3 {[%emt 0:01:28]} Qe8 {[%emt 0:00:35]} 14. Qc1 {[%emt 0:02:53]} Na5 {[%emt 0:06:50]} 15. Nge2 {[%emt 0:03:22]} e6 {[%emt 0:09:51]} 16. Bg5 {[%emt 0:17:35]} Rd7 {[%emt 0:01:43]} 17. h4 {[%emt 0:04:24]} (17. dxe6 $14 {keeps the upper hand.} fxe6 18. h4) 17... exd5 $17 {[%emt 0:01:07]} 18. exd5 {[%emt 0:01:42]} Qe5 {[%emt 0:04:23]} 19. Nf4 {[%emt 0:03:17]} Rd6 {[%emt 0:08:36]} 20. Re1 {[%emt 0:24:24]} Bf5+ {[%emt 0:00:30]} 21. Ka1 {[%emt 0:00:06]} Qd4 {[%emt 0:00:19]} 22. g4 {[%emt 0:00:23]} Na4 {[%emt 0:04:54]} 23. Nfe2 {[%emt 0:07:18]} Qb4 {[%emt 0:06:35]} 24. gxf5 {[%emt 0:01:02]} Rb6 {[%emt 0:07:42]} 25. Nxa4 {[%emt 0:04:30]} Qxa4 {[%emt 0:09:18]} 26. Nc3 {[%emt 0:00:27]} Qd7 {[%emt 0:00:39]} 27. f6 {[%emt 0:06:37]} Bf8 {[%emt 0:06:20]} 28. h5 {[%emt 0:00:30]} 1-0

[Event "XXIX Cracovia 2018"]
[Site "Krakow"]
[Date "2019.01.04"]
[Round "9"]
[White "Lee, Qing Aun"]
[Black "Goumas, Georgios"]
[Result "0-1"]
[ECO "B35"]
[WhiteElo "2297"]
[BlackElo "2378"]
[Annotator "NA"]
[PlyCount "86"]
[EventDate "2018.12.27"]
[EventType "swiss"]
[EventCountry "POL"]
[SourceTitle "playchess.com"]
[Source "ChessBase"]
[SourceQuality "1"]
[TimeControl "40/5400+30:1800+30"]

1. e4 {[%emt 0:00:00]} c5 {[%emt 0:06:37]} 2. Nf3 {[%emt 0:00:48]} Nc6 {[%emt 0:00:10]} 3. d4 {[%emt 0:00:10]} cxd4 {[%emt 0:00:05]} 4. Nxd4 {[%emt 0:00:10]} g6 {[%emt 0:00:16]} 5. Nc3 {[%emt 0:00:16]} Bg7 {[%emt 0:00:07]} 6. Be3 {[%emt 0:00:14]} Nf6 {[%emt 0:00:06]} 7. Bc4 {[%emt 0:00:20]} O-O {[%emt 0:00:07]} 8. Bb3 {[%emt 0:00:13]} Re8 {[%emt 0:00:11]} 9. O-O {[%emt 0:03:54]} d6 {[%emt 0:00:13]} 10. f3 {[%emt 0:00:18]} Na5 {[%emt 0:01:26]} 11. Qd2 {[%emt 0:05:49]} b6 {[%emt 0:03:42]} 12. Rad1 {[%emt 0:10:23]} Bb7 {[%emt 0:02:39]} 13. Rfe1 {[%emt 0:02:37]} Nxb3 {[%emt 0:02:08]} 14. axb3 {[%emt 0:00:23]} a6 {[%emt 0:00:08]} 15. Qf2 {[%emt 0:00:53]} Nd7 {[%emt 0:03:20]} 16. Nde2 {[%emt 0:10:55]} b5 {[%emt 0:05:37]} 17. Bd4 {[%emt 0:00:50]} Rc8 {[%emt 0:03:45]} 18. Bxg7 {[%emt 0:10:02]} Kxg7 {[%emt 0:00:56]} 19. Nf4 {[%emt 0:00:19]} Qb6 {[%emt 0:02:13]} 20. Re3 {[%emt 0:00:38]} Nf6 {[%emt 0:02:14]} 21. Rd2 {[%emt 0:04:16]} e5 {[%emt 0:13:38]} 22. Nfe2 {[%emt 0:06:20]} b4 {[%emt 0:01:40]} 23. Na4 {[%emt 0:00:40]} Qc7 {[%emt 0:00:15]} 24. c4 {[%emt 0:04:59]} bxc3 {[%emt 0:04:54]} 25. Rxc3 {[%emt 0:02:24]} Qb8 {[%emt 0:03:46]} 26. Nb6 {[%emt 0:06:48]} Rcd8 {[%emt 0:02:31]} 27. Rcd3 {[%emt 0:05:35]} Bxe4 {[%emt 0:02:17]} 28. fxe4 {[%emt 0:00:22]} Ng4 {[%emt 0:00:15]} 29. Qg3 {[%emt 0:01:24]} Qxb6+ {[%emt 0:00:07]} 30. Kf1 {[%emt 0:00:02]} Nf6 {[%emt 0:07:16]} 31. Nc3 {[%emt 0:01:08]} Qxb3 {[%emt 0:02:55]} 32. Qh4 {[%emt 0:09:56]} Qe6 {[%emt 0:02:54]} 33. Rf3 {[%emt 0:00:59]} Rd7 {[%emt 0:00:31]} 34. Rdf2 {[%emt 0:03:39]} Ng4 {[%emt 0:01:54]} 35. Nd5 {[%emt 0:02:48]} Nxf2 {[%emt 0:06:14]} 36. Nf6 {[%emt 0:00:18]} h6 {[%emt 0:00:06]} 37. Kxf2 {[%emt 0:00:57]} Rb8 {[%emt 0:01:14]} 38. Nxd7 {[%emt 0:04:39]} Rxb2+ {[%emt 0:03:37]} 39. Kg3 {[%emt 0:00:01]} Qxd7 {[%emt 0:01:12]} 40. Qf6+ {[%emt 0:00:00]} Kg8 {[%emt 0:00:00]} 41. Rd3 {[%emt 0:01:43]} Qc6 {[%emt 0:16:56]} 42. Qd8+ {[%emt 0:06:20]} Kg7 {[%emt 0:01:58]} 43. Rxd6 {[%emt 0:06:40]} Rb3+ {[%emt 0:01:25]} 0-1

[Event "XXIX Cracovia 2018"]
[Site "Krakow"]
[Date "2019.01.04"]
[Round "9"]
[White "Kulkarni Bhakti"]
[Black "Golubka, Petro"]
[Result "1/2-1/2"]
[ECO "B22"]
[WhiteElo "2283"]
[BlackElo "2464"]
[Annotator "ChessBase"]
[PlyCount "80"]
[EventDate "2018.12.27"]
[EventType "swiss"]
[EventCountry "POL"]
[SourceTitle "playchess.com"]
[Source "ChessBase"]
[SourceQuality "1"]
[TimeControl "40/5400+30:1800+30"]

1. e4 {[%emt 0:00:00]} c5 {[%emt 0:01:31]} 2. c3 {[%emt 0:00:00]} e5 {[%emt 0:04:24]} 3. Nf3 {[%emt 0:00:54]} Nc6 {[%emt 0:00:22]} 4. d4 {[%emt 0:01:34]} cxd4 {[%emt 0:02:53]} 5. cxd4 {[%emt 0:00:05]} exd4 {[%emt 0:00:15]} 6. Nxd4 {[%emt 0:00:36]} Nf6 {[%emt 0:00:07]} 7. Nc3 {[%emt 0:02:37]} Bb4 {[%emt 0:00:07]} 8. Nxc6 {[%emt 0:04:20]} dxc6 {[%emt 0:00:51]} 9. Qxd8+ {[%emt 0:01:14]} Kxd8 {[%emt 0:00:02]} 10. f3 {[%emt 0:00:58]} Be6 {[%emt 0:00:06]} 11. Be3 {[%emt 0:01:56]} Nd7 {[%emt 0:00:18]} 12. Be2 {[%emt 0:02:09]} Ke7 {[%emt 0:00:26]} 13. O-O {[%emt 0:02:24]} f6 {[%emt 0:00:24]} 14. Rfd1 {[%emt 0:01:39]} Nb6 {[%emt 0:00:09]} 15. Rd4 {[%emt 0:12:21]} Bc5 {[%emt 0:10:32]} 16. Rd3 {[%emt 0:00:08]} Bxe3+ {[%emt 0:00:04]} 17. Rxe3 {[%emt 0:00:06]} g5 {[%emt 0:00:18]} 18. b3 {[%emt 0:03:44]} h5 {[%emt 0:01:10]} 19. Rd1 {[%emt 0:03:06]} Rhd8 {[%emt 0:01:03]} 20. Red3 {[%emt 0:00:26]} Rxd3 {[%emt 0:00:08]} 21. Bxd3 {[%emt 0:00:18]} a5 {[%emt 0:00:16]} 22. Bc2 {[%emt 0:01:56]} Nd7 {[%emt 0:00:32]} 23. Kf2 {[%emt 0:00:50]} h4 {[%emt 0:00:13]} 24. Ke3 {[%emt 0:02:04]} b5 {[%emt 0:00:11]} 25. Ne2 {[%emt 0:01:09]} Ne5 {[%emt 0:00:20]} 26. Nd4 {[%emt 0:05:58]} Bd7 {[%emt 0:00:37]} 27. Nf5+ {[%emt 0:01:35]} Bxf5 {[%emt 0:00:15]} 28. exf5 {[%emt 0:00:01]} b4 {[%emt 0:05:48]} 29. Rd4 {[%emt 0:12:29]} c5 {[%emt 0:02:01]} 30. Rd5 {[%emt 0:05:08]} c4 {[%emt 0:00:31]} 31. bxc4 {[%emt 0:00:39]} Nxc4+ {[%emt 0:03:29]} 32. Kd4 {[%emt 0:00:51]} Ne5 {[%emt 0:00:57]} 33. Ba4 {[%emt 0:02:53]} Rd8 {[%emt 0:16:11]} 34. Rxd8 {[%emt 0:05:57]} Kxd8 {[%emt 0:06:36]} 35. Kc5 {[%emt 0:10:45]} Ke7 {[%emt 0:00:39]} 36. Bb5 {[%emt 0:03:29]} h3 {[%emt 0:00:36]} 37. gxh3 {[%emt 0:00:15]} Nxf3 {[%emt 0:00:02]} 38. Bd3 {[%emt 0:00:38]} Ne5 {[%emt 0:05:39]} 39. Bb5 {[%emt 0:00:43]} Nf7 {[%emt 0:00:35]} 40. Ba4 {[%emt 0:00:00]} Ne5 {[%emt 0:00:00]} 1/2-1/2

[Event "XXIX Cracovia 2018"]
[Site "Krakow"]
[Date "2019.01.04"]
[Round "9"]
[White "Chylewski, Patryk"]
[Black "Zakrzewski, Marek"]
[Result "1/2-1/2"]
[ECO "B47"]
[WhiteElo "2268"]
[BlackElo "2311"]
[Annotator "NA"]
[PlyCount "36"]
[EventDate "2018.12.27"]
[EventType "swiss"]
[EventCountry "POL"]
[SourceTitle "playchess.com"]
[Source "ChessBase"]
[SourceQuality "1"]
[TimeControl "40/5400+30:1800+30"]

1. e4 {[%emt 0:00:00]} c5 {[%emt 0:00:00]} 2. Nf3 {[%emt 0:00:00]} e6 {[%emt 0:00:00]} 3. d4 {[%emt 0:00:00]} cxd4 {[%emt 0:00:00]} 4. Nxd4 {[%emt 0:00:00]} Nc6 {[%emt 0:00:03]} 5. Nc3 {[%emt 0:00:00]} Qc7 {[%emt 0:00:05]} 6. g3 {[%emt 0:01:01]} a6 {[%emt 0:00:08]} 7. Bg2 {[%emt 0:00:05]} Nf6 {[%emt 0:01:54]} 8. O-O {[%emt 0:00:42]} Nxd4 {[%emt 0:00:13]} 9. Qxd4 {[%emt 0:00:06]} Bc5 {[%emt 0:00:09]} 10. Bf4 {[%emt 0:00:21]} d6 {[%emt 0:00:07]} 11. Qd2 {[%emt 0:00:05]} h6 {[%emt 0:00:43]} 12. Rad1 {[%emt 0:05:40]} e5 {[%emt 0:00:08]} 13. Be3 {[%emt 0:00:04]} Be6 {[%emt 0:00:16]} 14. Bxc5 {[%emt 0:00:35]} dxc5 {[%emt 0:00:08]} 15. Nd5 {[%emt 0:00:07]} Bxd5 {[%emt 0:00:15]} 16. exd5 {[%emt 0:00:05]} Qd6 {[%emt 0:00:12]} 17. Rfe1 {[%emt 0:00:55]} O-O {[%emt 0:02:07]} 18. c4 {[%emt 0:00:18]} Rfe8 {[%emt 0:02:31]} 1/2-1/2